fUST/lending_fUST_20240722
["ID","MTS","AMOUNT","RATE_DAILY","PERIOD"]
[332895320,1721656242502,-505.0,0.00013673,2]
[332895321,1721656242511,-1409.0,0.00013673,2]
[332895322,1721656242520,-515.16142625,0.00013688,2]
[332895335,1721656247217,-155.78948191,0.0001212,2]
[332895336,1721656247226,-17361.34694219,0.00013688,2]
[332895404,1721656957737,150.112233,0.00014,3]
[332895406,1721657212502,2744.67,0.000225,30]
[332895407,1721657238109,-403.29212142,9.999e-05,2]
[332895408,1721657238130,-154.76012181,9.999e-05,2]
[332895409,1721657238153,-533.87031557,9.999e-05,2]
[332895410,1721657238176,-726.7153245,9.999e-05,2]
[332895411,1721657238197,-162.19020146,9.999e-05,2]
[332895412,1721657238222,-154.72922386,9.999e-05,2]
[332895413,1721657238244,-188.02900327,9.999e-05,2]
[332895414,1721657238266,-207.55117923,9.999e-05,2]
[332895415,1721657238292,-346.24214689,9.999e-05,2]
[332895416,1721657238314,-287.45478261,0.0001,2]
[332895417,1721657238336,-154.74467129,0.0001,2]
[332895418,1721657238358,-154.74467129,0.0001,2]
[332895419,1721657238381,-386.04,0.00010959,2]
[332895420,1721657238405,-3702.5288801,0.00011513,2]
[332895421,1721657238428,-250.0,0.0001158,2]
[332895422,1721657238451,-166.777066,0.00011972,2]
[332895423,1721657238477,-10196.71254728,0.00012659,2]
[332895522,1721657438289,-154.72922386,9.999e-05,2]
[332895523,1721657438300,-403.29212142,9.999e-05,2]
[332895524,1721657438309,-459.13593927,9.999e-05,2]
[332895525,1721657438320,-805.83297211,9.999e-05,2]
[332895526,1721657438330,-346.24214689,9.999e-05,2]
[332895527,1721657438339,-287.32164355,0.0001,2]
[332895528,1721657438348,-300.0,0.00012375,2]
[332895530,1721657438359,-14693.2874527,0.00012376,2]
[332895531,1721657438370,-203967.089765,0.00012649,2]
[332895532,1721657438379,-270.77729305,0.00012659,2]
[332895533,1721657438389,-19442.92605809,0.00012659,2]
[332895534,1721657438400,-3781.68915549,0.00012659,2]
[332895535,1721657438409,-4707.50365433,0.00012659,2]
[332895536,1721657438419,-134022.02861207,0.00012659,2]
[332895537,1721657438429,-586.9335157,0.00012878,2]
[332895538,1721657438438,-153.0,0.000129,2]
[332895539,1721657438447,-1565.16154093,0.000129,2]
[332895540,1721657438457,-153.0,0.00013141,2]
[332895541,1721657438466,-153.0,0.000132,2]
[332895542,1721657438475,-206.6425332,0.000132,2]
[332895543,1721657438485,-153.0,0.000132,2]
[332895544,1721657438494,-153.0,0.00013278,2]
[332895545,1721657438504,-367.39222983,0.00013279,2]
[332895546,1721657438513,-361.638038,0.000133,2]
[332895547,1721657438523,-153.0,0.000133,2]
[332895548,1721657438533,-153.0,0.000133,2]
[332895549,1721657438543,-153.0,0.000133,2]
[332895550,1721657438553,-153.0,0.000133,2]
[332895551,1721657438562,-154.0842391,0.000133,2]
[332895552,1721657438571,-306.0,0.000133,2]
[332895553,1721657438581,-5304.84073988,0.00013404,2]
[332895554,1721657438591,-200.0,0.00013425,2]
[332895555,1721657438601,-153.0,0.00013452,2]
[332895556,1721657438610,-474.9424068,0.00013551,2]
[332895557,1721657438621,-153.0,0.00013552,2]
[332895558,1721657438631,-1409.0,0.00013571,2]
[332895559,1721657438641,-826.19144721,0.00013598,2]
[332895560,1721657438652,-2000.0,0.00013598,2]
[332895561,1721657438664,-420.0,0.00013612,2]
[332895562,1721657438673,-151.142,0.00013673,2]
[332895563,1721657438683,-150.0,0.00013673,2]
[332895564,1721657438692,-505.0,0.00013673,2]
[332895565,1721657438702,-101983.544883,0.00013678,2]
[332895566,1721657438712,-101983.544883,0.00013686,2]
[332895567,1721657438721,-151.0,0.00013688,2]
[332895568,1721657438732,-151.0,0.00013688,2]
[332895569,1721657438741,-151.0,0.00013688,2]
[332895570,1721657438751,-151.0,0.00013688,2]
[332895571,1721657438760,-286.623843,0.00013688,2]
[332895572,1721657438770,-286.623843,0.00013688,2]
[332895573,1721657438781,-362.454889,0.00013688,2]
[332895574,1721657438790,-362.454889,0.00013688,2]
[332895575,1721657438799,-286.623843,0.00013688,2]
[332895576,1721657438809,-286.623843,0.00013688,2]
[332895577,1721657438819,-362.454889,0.00013688,2]
[332895578,1721657438829,-362.454889,0.00013688,2]
[332895579,1721657438839,-315.452095,0.00013688,2]
[332895580,1721657438849,-315.452095,0.00013688,2]
[332895581,1721657438859,-315.452095,0.00013688,2]
[332895582,1721657438871,-315.452095,0.00013688,2]
[332895583,1721657438881,-173.903516,0.00013688,2]
[332895584,1721657438891,-173.903516,0.00013688,2]
[332895585,1721657438902,-173.903516,0.00013688,2]
[332895586,1721657438911,-173.903516,0.00013688,2]
[332895587,1721657438921,-1434.443819,0.00013688,2]
[332895588,1721657438931,-1434.443819,0.00013688,2]
[332895589,1721657438940,-1434.443819,0.00013688,2]
[332895590,1721657438949,-1434.443819,0.00013688,2]
[332895591,1721657438960,-151.0,0.00013688,2]
[332895592,1721657438970,-464.97891,0.00013688,2]
[332895593,1721657438980,-464.97891,0.00013688,2]
[332895594,1721657438990,-464.97891,0.00013688,2]
[332895595,1721657439000,-464.97891,0.00013688,2]
[332895596,1721657439010,-464.97891,0.00013688,2]
[332895597,1721657439023,-464.97891,0.00013688,2]
[332895598,1721657439033,-151.0,0.00013688,2]
[332895599,1721657439043,-151.0,0.00013688,2]
[332895600,1721657439053,-151.0,0.00013688,2]
[332895601,1721657439063,-151.0,0.00013688,2]
[332895602,1721657439073,-151.0,0.00013688,2]
[332895603,1721657439083,-287.810939,0.00013688,2]
[332895604,1721657439092,-271.012776,0.00013688,2]
[332895605,1721657439102,-271.012776,0.00013688,2]
[332895606,1721657439112,-271.012776,0.00013688,2]
[332895607,1721657439124,-886.991579,0.00013688,2]
[332895608,1721657439133,-271.012776,0.00013688,2]
[332895609,1721657439143,-886.991579,0.00013688,2]
[332895610,1721657439152,-886.991579,0.00013688,2]
[332895611,1721657439162,-886.991579,0.00013688,2]
[332895612,1721657439171,-5000.0,0.00013696,2]
[332895613,1721657439181,-5000.0,0.00013696,2]
[332895614,1721657439191,-5000.0,0.00013696,2]
[332895615,1721657439200,-1510.28073615,0.00013696,2]
[332895616,1721657439209,-886.991579,0.00013696,2]
[332895617,1721657439218,-886.991579,0.00013696,2]
[332895618,1721657439229,-2957.627882,0.00013696,2]
[332895619,1721657439238,-2957.627882,0.00013696,2]
[332895620,1721657439248,-151.0,0.00013696,2]
[332895621,1721657439258,-163.203199,0.00013696,2]
[332895622,1721657439267,-215.358577,0.00013696,2]
[332895623,1721657439277,-2991.253763,0.00013696,2]
[332895624,1721657439287,-2991.253763,0.00013696,2]
[332895625,1721657439297,-151.0,0.00013696,2]
[332895626,1721657439307,-151.0,0.00013696,2]
[332895627,1721657439316,-309.201617,0.00013696,2]
[332895628,1721657439326,-484.036848,0.00013696,2]
[332895629,1721657439336,-309.201617,0.00013696,2]
[332895630,1721657439345,-484.036848,0.00013696,2]
[332895631,1721657439355,-151.0,0.00013696,2]
[332895632,1721657439364,-3256.511672,0.00013696,2]
[332895633,1721657439375,-3256.511672,0.00013696,2]
[332895634,1721657439385,-674.898705,0.00013696,2]
[332895635,1721657439394,-674.898705,0.00013696,2]
[332895636,1721657439404,-1415.325967,0.00013696,2]
[332895637,1721657439414,-1415.325967,0.00013696,2]
[332895638,1721657439423,-196.804317,0.00013696,2]
[332895639,1721657439433,-196.804317,0.00013696,2]
[332895640,1721657439443,-398.22737118,0.00013698,2]
[332895641,1721657439452,-501.16438225,0.00013698,2]
[332895642,1721657439462,-500.0,0.00013698,2]
[332895643,1721657439471,-500.0,0.00013698,2]
[332895644,1721657439480,-519.02882263,0.00013698,2]
[332895645,1721657439490,-501.18856013,0.00013698,2]
[332895646,1721657439499,-500.0,0.00013698,2]
[332895647,1721657439509,-500.0,0.00013698,2]
[332895648,1721657439519,-552.84,0.00013698,2]
[332895649,1721657439528,-500.0,0.00013698,2]
[332895650,1721657439539,-500.0,0.00013698,2]
[332895651,1721657439549,-500.0,0.00013698,2]
[332895652,1721657439559,-500.0,0.00013698,2]
[332895653,1721657439570,-500.0,0.00013698,2]
[332895654,1721657439581,-500.0,0.00013698,2]
[332895655,1721657439591,-500.0,0.00013698,2]
[332895656,1721657439602,-500.0,0.00013698,2]
[332895657,1721657439611,-500.0,0.00013698,2]
[332895658,1721657439622,-623.57952288,0.00013698,2]
[332895659,1721657439631,-500.0,0.00013698,2]
[332895660,1721657439641,-500.0,0.00013698,2]
[332895661,1721657439651,-323.98651285,0.00013698,2]
[332895662,1721657439664,-500.0,0.00013698,2]
[332895663,1721657439676,-500.0,0.00013698,2]
[332895664,1721657439686,-500.0,0.00013698,2]
[332895665,1721657439696,-500.0,0.00013698,2]
[332895666,1721657439707,-500.0,0.00013698,2]
[332895667,1721657439717,-505.74011897,0.00013698,2]
[332895668,1721657439727,-503.79765142,0.00013698,2]
[332895669,1721657439742,-500.0,0.00013698,2]
[332895670,1721657439753,-500.0,0.00013698,2]
[332895671,1721657439765,-500.0,0.00013698,2]
[332895672,1721657439774,-500.0,0.00013698,2]
[332895673,1721657439784,-500.0,0.00013698,2]
[332895675,1721657439794,-500.0,0.00013698,2]
[332895676,1721657439804,-161.25775841,0.00013698,2]
[332895677,1721657439815,-500.0,0.00013698,2]
[332895678,1721657439825,-508.14216732,0.00013698,2]
[332895679,1721657439835,-500.0,0.00013698,2]
[332895680,1721657439844,-500.0,0.00013698,2]
[332895681,1721657439854,-500.0,0.00013698,2]
[332895684,1721657439864,-500.0,0.00013698,2]
[332895687,1721657439875,-500.0,0.00013698,2]
[332895689,1721657439884,-500.0,0.00013698,2]
[332895691,1721657439894,-368.02272129,0.00013698,2]
[332895693,1721657439903,-500.0,0.00013698,2]
[332895694,1721657439913,-500.0,0.00013698,2]
[332895695,1721657439922,-503.59785011,0.00013698,2]
[332895697,1721657439932,-369.16,0.00013698,2]
[332895699,1721657439941,-431.34980111,0.00013698,2]
[332895700,1721657439951,-500.0,0.00013698,2]
[332895701,1721657439961,-500.0,0.00013698,2]
[332895702,1721657439971,-504.29319091,0.00013698,2]
[332895703,1721657439980,-500.0,0.00013698,2]
[332895704,1721657439990,-500.0,0.00013698,2]
[332895705,1721657440000,-500.0,0.00013698,2]
[332895706,1721657440009,-500.0,0.00013698,2]
[332895708,1721657440019,-500.0,0.00013698,2]
[332895709,1721657440028,-500.0,0.00013698,2]
[332895710,1721657440038,-500.0,0.00013698,2]
[332895711,1721657440047,-500.0,0.00013698,2]
[332895712,1721657440057,-500.0,0.00013698,2]
[332895714,1721657440067,-500.0,0.00013698,2]
[332895715,1721657440077,-224.51156347,0.00013698,2]
[332895716,1721657440087,-563.82868975,0.00013698,2]
[332895717,1721657440098,-500.0,0.00013698,2]
[332895718,1721657440108,-500.0,0.00013698,2]
[332895719,1721657440121,-1028.28,0.00013698,2]
[332895720,1721657440130,-503.64069599,0.00013698,2]
[332895721,1721657440140,-591.44295852,0.00013698,2]
[332895722,1721657440151,-500.0,0.00013698,2]
[332895723,1721657440161,-500.0,0.00013698,2]
[332895724,1721657440171,-500.0,0.00013698,2]
[332895725,1721657440180,-1075.74,0.00013698,2]
[332895726,1721657440189,-500.0,0.00013698,2]
[332895727,1721657440199,-500.0,0.00013698,2]
[332895728,1721657440208,-500.0,0.00013698,2]
[332895729,1721657440218,-500.0,0.00013698,2]
[332895730,1721657440228,-500.0,0.00013698,2]
[332895731,1721657440237,-503.66669502,0.00013698,2]
[332895732,1721657440247,-500.0,0.00013698,2]
[332895733,1721657440257,-500.0,0.00013698,2]
[332895734,1721657440266,-500.0,0.00013698,2]
[332895735,1721657440276,-500.0,0.00013698,2]
[332895736,1721657440286,-500.0,0.00013698,2]
[332895737,1721657440296,-513.10565774,0.00013698,2]
[332895738,1721657440305,-611.19489112,0.00013698,2]
[332895739,1721657440315,-500.0,0.00013698,2]
[332895740,1721657440326,-500.0,0.00013698,2]
[332895742,1721657440336,-543.31571921,0.00013698,2]
[332895744,1721657440346,-500.0,0.00013698,2]
[332895745,1721657440356,-500.0,0.00013698,2]
[332895746,1721657440366,-500.0,0.00013698,2]
[332895747,1721657440384,-517.43710513,0.00013698,2]
[332895748,1721657440393,-500.0,0.00013698,2]
[332895749,1721657440403,-500.0,0.00013698,2]
[332895750,1721657440413,-613.50607496,0.00013698,2]
[332895751,1721657440424,-500.0,0.00013698,2]
[332895752,1721657440433,-500.0,0.00013698,2]
[332895753,1721657440443,-500.0,0.00013698,2]
[332895754,1721657440452,-500.0,0.00013698,2]
[332895755,1721657440462,-500.0,0.00013698,2]
[332895756,1721657440473,-500.0,0.00013698,2]
[332895757,1721657440483,-500.0,0.00013698,2]
[332895758,1721657440494,-504.66876124,0.00013698,2]
[332895759,1721657440503,-500.0,0.00013698,2]
[332895760,1721657440514,-500.0,0.00013698,2]
[332895761,1721657440524,-339.91633675,0.00013698,2]
[332895762,1721657440534,-502.95930397,0.00013698,2]
[332895763,1721657440543,-500.0,0.00013698,2]
[332895764,1721657440553,-500.0,0.00013698,2]
[332895765,1721657440563,-511.22,0.00013698,2]
[332895766,1721657440573,-500.0,0.00013698,2]
[332895767,1721657440583,-500.0,0.00013698,2]
[332895768,1721657440592,-500.0,0.00013698,2]
[332895769,1721657440602,-500.0,0.00013698,2]
[332895770,1721657440611,-500.0,0.00013698,2]
[332895771,1721657440626,-214.25573509,0.00013698,2]
[332895772,1721657440637,-500.0,0.00013698,2]
[332895773,1721657440646,-500.0,0.00013698,2]
[332895774,1721657440659,-500.94892548,0.00013698,2]
[332895775,1721657440669,-500.0,0.00013698,2]
[332895776,1721657440679,-482.2656676,0.00013698,2]
[332895777,1721657440688,-500.0,0.00013698,2]
[332895778,1721657440698,-500.0,0.00013698,2]
[332895779,1721657440707,-500.0,0.00013698,2]
[332895780,1721657440716,-500.0,0.00013698,2]
[332895781,1721657440726,-500.0,0.00013698,2]
[332895782,1721657440738,-500.0,0.00013698,2]
[332895783,1721657440748,-500.0,0.00013698,2]
[332895784,1721657440758,-500.0,0.00013698,2]
[332895785,1721657440768,-500.0,0.00013698,2]
[332895786,1721657440777,-500.0,0.00013698,2]
[332895787,1721657440787,-500.0,0.00013698,2]
[332895788,1721657440796,-500.0,0.00013698,2]
[332895789,1721657440806,-231.27976673,0.00013698,2]
[332895790,1721657440815,-500.0,0.00013698,2]
[332895791,1721657440825,-500.0,0.00013698,2]
[332895792,1721657440835,-500.0,0.00013698,2]
[332895793,1721657440844,-500.0,0.00013698,2]
[332895794,1721657440854,-500.0,0.00013698,2]
[332895795,1721657440864,-500.0,0.00013698,2]
[332895796,1721657440881,-500.0,0.00013698,2]
[332895797,1721657440891,-500.0,0.00013698,2]
[332895798,1721657440900,-500.0,0.00013698,2]
[332895799,1721657440910,-500.0,0.00013698,2]
[332895800,1721657440923,-500.0,0.00013698,2]
[332895801,1721657440933,-500.0,0.00013698,2]
[332895802,1721657440942,-504.92000203,0.00013698,2]
[332895803,1721657440952,-500.0,0.00013698,2]
[332895804,1721657440961,-500.0,0.00013698,2]
[332895805,1721657440971,-500.0,0.00013698,2]
[332895806,1721657440981,-500.0,0.00013698,2]
[332895807,1721657440990,-500.0,0.00013698,2]
[332895808,1721657440999,-500.0,0.00013698,2]
[332895809,1721657441009,-536.07823364,0.00013698,2]
[332895810,1721657441018,-500.0,0.00013698,2]
[332895811,1721657441028,-500.0,0.00013698,2]
[332895812,1721657441038,-500.0,0.00013698,2]
[332895813,1721657441047,-500.0,0.00013698,2]
[332895814,1721657441057,-513.180343,0.00013698,2]
[332895815,1721657441066,-500.0,0.00013698,2]
[332895816,1721657441075,-500.0,0.00013698,2]
[332895817,1721657441085,-500.0,0.00013698,2]
[332895818,1721657441094,-500.0,0.00013698,2]
[332895819,1721657441104,-202.55632502,0.00013698,2]
[332895820,1721657441114,-500.0,0.00013698,2]
[332895821,1721657441127,-502.18907915,0.00013698,2]
[332895822,1721657441136,-500.0,0.00013698,2]
[332895823,1721657441145,-316.94489928,0.00013698,2]
[332895824,1721657441154,-508.24530935,0.00013698,2]
[332895825,1721657441163,-500.0,0.00013698,2]
[332895826,1721657441172,-500.0,0.00013698,2]
[332895827,1721657441182,-500.0,0.00013698,2]
[332895828,1721657441192,-502.3770326,0.00013698,2]
[332895829,1721657441202,-500.0,0.00013698,2]
[332895830,1721657441214,-500.64682098,0.00013698,2]
[332895831,1721657441224,-500.0,0.00013698,2]
[332895832,1721657441234,-500.0,0.00013698,2]
[332895833,1721657441245,-500.0,0.00013698,2]
[332895834,1721657441256,-500.0,0.00013698,2]
[332895835,1721657441267,-500.0,0.00013698,2]
[332895836,1721657441277,-500.0,0.00013698,2]
[332895837,1721657441287,-500.0,0.00013698,2]
[332895838,1721657441297,-617.99000998,0.00013698,2]
[332895839,1721657441307,-500.0,0.00013698,2]
[332895840,1721657441317,-501.15052007,0.00013698,2]
[332895841,1721657441327,-500.0,0.00013698,2]
[332895842,1721657441337,-500.0,0.00013698,2]
[332895843,1721657441347,-500.0,0.00013698,2]
[332895844,1721657441356,-500.0,0.00013698,2]
[332895845,1721657441365,-500.0,0.00013698,2]
[332895846,1721657441382,-500.0,0.00013698,2]
[332895847,1721657441391,-500.0,0.00013698,2]
[332895848,1721657441401,-500.0,0.00013698,2]
[332895849,1721657441410,-566.88517477,0.00013698,2]
[332895850,1721657441419,-500.0,0.00013698,2]
[332895851,1721657441429,-500.0,0.00013698,2]
[332895852,1721657441439,-500.0,0.00013698,2]
[332895853,1721657441448,-504.76180352,0.00013698,2]
[332895854,1721657441457,-500.0,0.00013698,2]
[332895855,1721657441467,-500.0,0.00013698,2]
[332895856,1721657441477,-500.0,0.00013698,2]
[332895857,1721657441487,-500.0,0.00013698,2]
[332895858,1721657441496,-500.0,0.00013698,2]
[332895859,1721657441507,-502.74887545,0.00013698,2]
[332895860,1721657441517,-500.0,0.00013698,2]
[332895861,1721657441527,-503.02447703,0.00013698,2]
[332895862,1721657441536,-500.0,0.00013698,2]
[332895863,1721657441546,-500.0,0.00013698,2]
[332895864,1721657441556,-500.0,0.00013698,2]
[332895865,1721657441565,-500.0,0.00013698,2]
[332895866,1721657441575,-500.0,0.00013698,2]
[332895867,1721657441584,-578.09,0.00013698,2]
[332895868,1721657441595,-500.0,0.00013698,2]
[332895869,1721657441605,-503.43822199,0.00013698,2]
[332895870,1721657441615,-500.0,0.00013698,2]
[332895871,1721657441627,-500.0,0.00013698,2]
[332895872,1721657441637,-504.82102083,0.00013698,2]
[332895873,1721657441647,-647.60595873,0.00013698,2]
[332895874,1721657441659,-371.00016222,0.00013698,2]
[332895875,1721657441670,-502.50291833,0.00013698,2]
[332895876,1721657441679,-507.24393962,0.00013698,2]
[332895877,1721657441689,-512.58491509,0.00013698,2]
[332895878,1721657441699,-501.76437176,0.00013698,2]
[332895879,1721657441710,-505.07254393,0.00013698,2]
[332895880,1721657441722,-505.61133356,0.00013698,2]
[332895881,1721657441732,-500.0,0.00013698,2]
[332895882,1721657441744,-500.0,0.00013698,2]
[332895883,1721657441754,-529.2805657,0.00013698,2]
[332895884,1721657441763,-500.0,0.00013698,2]
[332895885,1721657441773,-513.80969609,0.00013698,2]
[332895886,1721657441783,-500.0,0.00013698,2]
[332895887,1721657441792,-500.0,0.00013698,2]
[332895888,1721657441801,-500.0,0.00013698,2]
[332895889,1721657441811,-500.0,0.00013698,2]
[332895890,1721657441821,-500.0,0.00013698,2]
[332895891,1721657441831,-500.0,0.00013698,2]
[332895892,1721657441840,-500.0,0.00013698,2]
[332895893,1721657441850,-500.0,0.00013698,2]
[332895894,1721657441859,-500.0,0.00013698,2]
[332895895,1721657441870,-500.0,0.00013698,2]
[332895896,1721657441879,-500.0,0.00013698,2]
[332895897,1721657441888,-500.0,0.00013698,2]
[332895898,1721657441897,-613.68437412,0.00013698,2]
[332895899,1721657441907,-500.0,0.00013698,2]
[332895900,1721657441916,-500.0,0.00013698,2]
[332895901,1721657441926,-500.0,0.00013698,2]
[332895902,1721657441935,-500.0,0.00013698,2]
[332895903,1721657441946,-500.0,0.00013698,2]
[332895904,1721657441955,-500.0,0.00013698,2]
[332895905,1721657441965,-508.24367803,0.00013698,2]
[332895906,1721657441974,-500.0,0.00013698,2]
[332895907,1721657441983,-500.0,0.00013698,2]
[332895908,1721657441993,-503.3907054,0.00013698,2]
[332895909,1721657442002,-500.0,0.00013698,2]
[332895910,1721657442012,-500.0,0.00013698,2]
[332895911,1721657442021,-226.4877244,0.00013698,2]
[332895912,1721657442031,-556.62,0.00013698,2]
[332895913,1721657442040,-509.47361346,0.00013698,2]
[332895914,1721657442049,-511.08765876,0.00013698,2]
[332895915,1721657442059,-500.0,0.00013698,2]
[332895916,1721657442068,-500.0,0.00013698,2]
[332895917,1721657442078,-502.22237599,0.00013698,2]
[332895918,1721657442088,-500.0,0.00013698,2]
[332895919,1721657442097,-234.0891584,0.00013698,2]
[332895920,1721657442106,-500.0,0.00013698,2]
[332895921,1721657442115,-500.0,0.00013698,2]
[332895922,1721657442127,-500.0,0.00013698,2]
[332895923,1721657442136,-503.89243339,0.00013698,2]
[332895924,1721657442146,-500.0,0.00013698,2]
[332895925,1721657442155,-500.0,0.00013698,2]
[332895926,1721657442164,-500.0,0.00013698,2]
[332895927,1721657442173,-330.35986295,0.00013698,2]
[332895928,1721657442183,-502.63812384,0.00013698,2]
[332895929,1721657442192,-500.57129976,0.00013698,2]
[332895930,1721657442201,-500.0,0.00013698,2]
[332895931,1721657442210,-500.0,0.00013698,2]
[332895932,1721657442220,-500.0,0.00013698,2]
[332895933,1721657442230,-620.6,0.00013698,2]
[332895934,1721657442410,-567.37534684,0.00013698,2]
[332895935,1721657442420,-504.12164446,0.00013698,2]
[332895936,1721657442429,-500.0,0.00013698,2]
[332895937,1721657442439,-500.0,0.00013698,2]
[332895938,1721657442449,-500.0,0.00013698,2]
[332895939,1721657442458,-500.0,0.00013698,2]
[332895940,1721657442468,-504.21491033,0.00013698,2]
[332895941,1721657442477,-500.0,0.00013698,2]
[332895942,1721657442486,-500.0,0.00013698,2]
[332895943,1721657442496,-503.52088847,0.00013698,2]
[332895944,1721657442505,-376.04,0.00013698,2]
[332895945,1721657442515,-500.0,0.00013698,2]
[332895946,1721657442525,-500.0,0.00013698,2]
[332895947,1721657442534,-500.0,0.00013698,2]
[332895948,1721657442544,-505.69370288,0.00013698,2]
[332895949,1721657442553,-546.68631017,0.00013698,2]
[332895950,1721657442563,-500.0,0.00013698,2]
[332895951,1721657442572,-500.0,0.00013698,2]
[332895952,1721657442582,-500.0,0.00013698,2]
[332895953,1721657442591,-504.31067322,0.00013698,2]
[332895954,1721657442601,-212.60432198,0.00013698,2]
[332895955,1721657442610,-539.84,0.00013698,2]
[332895956,1721657442622,-500.0,0.00013698,2]
[332895957,1721657442631,-500.0,0.00013698,2]
[332895958,1721657442640,-500.0,0.00013698,2]
[332895959,1721657442650,-500.0,0.00013698,2]
[332895960,1721657442664,-500.88649305,0.00013698,2]
[332895961,1721657442674,-503.66852271,0.00013698,2]
[332895962,1721657442682,-505.82577236,0.00013698,2]
[332895963,1721657442691,-500.0,0.00013698,2]
[332895964,1721657442701,-500.0,0.00013698,2]
[332895965,1721657442711,-502.50851254,0.00013698,2]
[332895966,1721657442721,-502.26993056,0.00013698,2]
[332895967,1721657442732,-504.40858094,0.00013698,2]
[332895968,1721657442742,-500.0,0.00013698,2]
[332895969,1721657442753,-500.0,0.00013698,2]
[332895970,1721657442762,-500.0,0.00013698,2]
[332895971,1721657442773,-500.0,0.00013698,2]
[332895972,1721657442782,-518.63,0.00013698,2]
[332895973,1721657442792,-500.0,0.00013698,2]
[332895974,1721657442802,-500.0,0.00013698,2]
[332895977,1721657442812,-500.0,0.00013698,2]
[332895979,1721657442822,-500.0,0.00013698,2]
[332895981,1721657442831,-620.43759471,0.00013698,2]
[332895983,1721657442840,-516.25954644,0.00013698,2]
[332895984,1721657442850,-500.0,0.00013698,2]
[332895985,1721657442859,-500.0,0.00013698,2]
[332895986,1721657442870,-500.0,0.00013698,2]
[332895989,1721657442879,-500.0,0.00013698,2]
[332895992,1721657442889,-500.0,0.00013698,2]
[332895995,1721657442898,-277.06716605,0.00013698,2]
[332895997,1721657442908,-500.0,0.00013698,2]
[332895999,1721657442918,-500.0,0.00013698,2]
[332896002,1721657442928,-501.20525823,0.00013698,2]
[332896005,1721657442938,-500.0,0.00013698,2]
[332896008,1721657442948,-500.0,0.00013698,2]
[332896011,1721657442957,-500.55675731,0.00013698,2]
[332896013,1721657442967,-587.85,0.00013698,2]
[332896014,1721657442977,-502.20272351,0.00013698,2]
[332896015,1721657442987,-555.63132399,0.00013698,2]
[332896016,1721657442997,-500.0,0.00013698,2]
[332896017,1721657443006,-500.0,0.00013698,2]
[332896018,1721657443017,-501.6814079,0.00013698,2]
[332896019,1721657443028,-500.0,0.00013698,2]
[332896020,1721657443039,-167.87,0.00013698,2]
[332896022,1721657443050,-500.0,0.00013698,2]
[332896023,1721657443063,-406.13167061,0.00013698,2]
[332896024,1721657443073,-500.0,0.00013698,2]
[332896025,1721657443084,-3998.48,0.00013698,2]
[332896026,1721657443095,-3998.48,0.00013698,2]
[332896027,1721657443106,-3998.48,0.00013698,2]
[332896028,1721657443117,-3998.48,0.00013698,2]
[332896029,1721657443128,-3998.48,0.00013698,2]
[332896030,1721657443141,-3998.48,0.00013698,2]
[332896031,1721657443152,-3998.48,0.00013698,2]
[332896032,1721657443162,-3998.48,0.00013698,2]
[332896033,1721657443171,-3998.48,0.00013698,2]
[332896034,1721657443180,-3998.48,0.00013698,2]
[332896035,1721657443190,-3998.48,0.00013698,2]